bitfinex-derivatives/quotes_ETHF0:USTF0_20260222
["timestamp","ask_amount","ask_price","bid_price","bid_amount"]
[1771765549307,0.49521039,1967.7,1967.2,0.00529433]
[1771765549508,0.5007312,1967.7,1967.2,0.55542687]
[1771765554010,0.5007312,1967.7,1967.2,0.00529433]
[1771765554211,0.5007312,1967.7,1966.5,0.55013254]
[1771765554607,0.5007312,1967.7,1966.6,0.55013254]
[1771765555209,0.5007312,1967.7,1966.6,0.55588255]
[1771765561112,0.97349284,1967.6,1966.6,0.55588255]
[1771765561317,6.05841073,1967.5,1966.6,0.00575001]
[1771765561520,0.49527554,1967.4,1965.9,0.2544]
[1771765561720,0.49527554,1967.4,1966.0,0.55013254]
[1771765562514,0.49527554,1967.2,1966.0,0.55599453]
[1771765565917,0.49961665,1967.0,1966.0,0.55599453]
[1771765566616,0.49961665,1966.8,1966.0,0.00586199]
[1771765566818,0.49961665,1966.8,1965.8,0.55013254]
[1771765567012,0.49167606,1966.7,1965.8,0.55013254]
[1771765567218,0.49167606,1966.5,1965.4,0.55013254]
[1771765567824,0.49167606,1966.3,1965.4,0.55528862]
[1771765568022,0.49784321,1966.3,1965.4,0.55528862]
[1771765570827,0.00616715,1966.3,1965.4,0.55528862]
[1771765571026,0.49329987,1966.3,1965.4,0.55528862]
[1771765574032,0.00616715,1966.3,1965.6,0.54734325]
[1771765574330,0.25428,1967.0,1965.6,0.54734325]
[1771765574331,0.4575181,1966.7,1965.6,0.54734325]
[1771765575231,0.46290884,1966.7,1965.6,0.54734325]
[1771765588148,0.46290884,1966.7,1965.8,0.54734325]
[1771765590452,0.46290884,1966.7,1966.0,0.54734325]
[1771765590453,0.00539074,1966.7,1966.0,0.54734325]
[1771765592258,0.48265197,1967.0,1966.2,0.54734325]
[1771765593155,0.48738901,1967.0,1966.2,0.54734325]
[1771765595652,0.00473704,1967.0,1966.2,0.54734325]
[1771765601361,0.00473704,1967.0,1966.3,0.25436]
[1771765601661,0.48924906,1967.3,1966.4,0.56186768]
[1771765602663,0.49514886,1967.3,1966.4,0.56186768]
[1771765605162,0.0058998,1967.3,1966.4,0.56186768]
[1771765605964,0.0058998,1967.3,1966.4,8.48851553]
[1771765606159,0.0058998,1967.3,1966.5,0.56186768]
[1771765616377,0.0058998,1967.3,1966.6,0.56186768]
[1771765619378,0.4910097,1967.6,1966.7,0.56186768]
[1771765619579,0.4910097,1967.9,1966.8,0.56186768]
[1771765620179,0.49727771,1967.9,1966.8,0.56738438]
[1771765622278,0.49727771,1967.9,1967.0,0.56186768]
[1771765625781,0.4287743,1967.7,1966.8,0.0055167]
[1771765626080,0.4287743,1967.5,1966.8,0.56738438]
[1771765627383,0.4399526,1967.3,1966.8,0.0055167]
[1771765636892,0.4399526,1967.3,1966.8,0.60709104]
[1771765637194,0.4399526,1967.3,1966.8,0.0055167]
[1771765638096,0.4399526,1967.3,1966.8,0.60709104]
[1771765645503,0.42852867,1967.7,1966.8,0.60709104]
[1771765645703,0.42852867,1967.5,1966.8,0.60709104]
[1771765653197,0.43799671,1967.8,1966.8,0.60709104]
[1771765653402,0.91884984,1967.7,1966.8,0.60709104]
[1771765653602,0.43799671,1967.7,1966.8,0.60709104]
[1771765655201,0.43799671,1967.7,1966.9,0.60157434]
[1771765660909,0.48126695,1967.6,1966.9,0.60157434]
[1771765661215,0.43640286,1967.5,1966.9,0.60157434]
[1771765668220,0.43640286,1967.5,1966.8,0.0055167]
[1771765668415,0.43798305,1967.3,1966.5,0.59910169]
[1771765668819,0.43798305,1967.1,1966.5,0.59910169]
[1771765669120,0.43798305,1967.1,1966.3,0.59910169]
[1771765669319,0.43798305,1967.1,1966.3,0.6030366]
[1771765670111,0.44409834,1966.9,1966.3,0.6030366]
[1771765670714,0.44409834,1966.9,1966.3,0.00393491]
[1771765671725,0.44409834,1966.9,1966.3,0.6030366]
[1771765677729,0.45452333,1967.2,1966.3,0.6030366]
[1771765682426,0.46772024,1967.1,1966.3,0.6030366]
[1771765683029,0.46772024,1967.1,1966.3,0.00393491]
[1771765683431,0.46772024,1967.1,1966.3,0.6030366]
[1771765684129,40.8,1967.2,1965.6,0.59910169]
[1771765684130,0.47071117,1966.9,1965.6,0.59910169]
[1771765684334,0.47071117,1966.9,1964.9,15.99502161]
[1771765684335,0.47071117,1966.5,1965.4,0.59910169]
[1771765684533,0.47071117,1966.3,1965.4,0.59910169]
[1771765684737,0.47071117,1966.1,1965.4,0.59910169]
[1771765685132,0.4748386,1966.1,1965.4,0.00498916]
[1771765686835,0.4748386,1966.1,1965.4,0.60409085]
[1771765687733,0.4748386,1966.1,1965.4,0.00498916]
[1771765690435,0.4748386,1966.1,1964.4,10.202]
[1771765690436,0.4748386,1966.1,1964.4,0.57622102]
[1771765690832,0.51391905,1965.9,1964.6,0.57622102]
[1771765691339,0.51391905,1965.9,1964.6,0.58187166]
[1771765692034,0.5179851,1965.5,1964.6,0.58187166]
[1771765692238,0.5179851,1965.5,1964.6,0.00565064]
[1771765692639,0.5179851,1965.3,1964.3,0.57622102]
[1771765693635,0.5179851,1965.3,1964.3,0.00369949]
[1771765693940,0.5179851,1965.3,1964.3,0.60731589]
[1771765696237,0.5179851,1965.3,1964.3,0.00369949]
[1771765696440,0.50535811,1965.1,1964.3,0.00369949]
[1771765696640,0.50535811,1965.1,1964.3,0.60731589]
[1771765697547,0.50280106,1965.7,1964.3,0.60731589]
[1771765697746,0.50280106,1966.0,1964.5,0.6036164]
[1771765698040,0.50280106,1965.9,1964.7,0.6036164]
[1771765704351,0.50280106,1965.9,1964.9,0.6036164]
[1771765712450,51.76252428,1966.1,1964.7,0.6036164]
[1771765712451,0.50844195,1965.7,1964.7,0.6036164]
[1771765722454,0.49998981,1965.5,1964.7,0.6036164]
[1771765722652,0.49998981,1965.5,1964.6,0.59600508]
[1771765722957,0.49998981,1965.3,1964.4,0.59600508]
[1771765724465,0.50005061,1965.7,1964.4,0.59600508]
[1771765724662,0.50005061,1965.5,1964.4,0.59600508]
[1771765725355,0.98034139,1965.4,1964.4,0.59600508]
[1771765725558,0.50061091,1965.4,1964.4,0.59600508]
[1771765725758,0.50061091,1965.8,1964.4,0.59600508]
[1771765725955,0.50061091,1965.6,1964.4,0.59600508]
[1771765726159,0.50061091,1965.4,1964.4,0.59600508]
[1771765728669,0.49982398,1965.8,1964.4,0.59600508]
[1771765728965,0.49982398,1965.6,1964.4,0.59600508]
[1771765729267,0.98026815,1965.5,1964.4,0.59600508]
[1771765729467,0.49988795,1965.5,1964.4,0.59600508]
[1771765731961,0.49988795,1965.5,1964.6,0.59600508]
[1771765733668,0.49860801,1965.6,1964.6,0.59600508]
[1771765733868,0.48045093,1965.5,1964.6,0.59600508]
[1771765734077,0.49860801,1965.6,1964.6,0.59600508]
[1771765734371,0.48045076,1965.5,1964.6,0.59600508]
[1771765734567,0.49860801,1965.6,1964.6,0.59600508]
[1771765734767,0.48048584,1965.5,1964.6,0.59600508]
[1771765734969,0.49860801,1965.6,1964.6,0.59600508]
[1771765735169,0.48065055,1965.5,1964.6,0.59600508]
[1771765735365,0.49860801,1965.6,1964.6,0.59600508]
[1771765735563,0.48069332,1965.5,1964.6,0.59600508]
[1771765735770,0.49860801,1965.6,1964.6,0.59600508]
[1771765740273,0.49860801,1965.6,1964.8,0.59600508]
[1771765741877,0.50483035,1965.8,1964.8,0.59600508]
[1771765742176,0.48108882,1965.7,1964.8,0.59600508]
[1771765742378,0.50483035,1965.8,1964.8,0.59600508]
[1771765742577,0.98597271,1965.7,1964.8,0.59600508]
[1771765742878,0.50483035,1965.7,1964.8,0.59600508]
[1771765744873,0.50319255,1965.5,1964.8,0.59600508]
[1771765745269,0.50319255,1965.5,1964.6,0.59600508]
[1771765745476,0.50744654,1965.3,1964.6,0.59600508]
[1771765746973,0.50744654,1965.5,1964.6,0.59600508]
[1771765755985,4.4414188,1966.0,1964.7,0.54797609]
[1771765756289,0.51045181,1965.8,1964.7,0.54797609]
[1771765756485,0.99188159,1965.7,1964.7,0.54797609]
[1771765756686,0.48142978,1965.6,1964.7,0.54797609]
[1771765756888,0.51045181,1965.7,1964.7,0.54797609]
[1771765757089,0.99511632,1965.6,1964.8,0.54797609]
[1771765757291,0.51369752,1965.6,1964.8,0.54797609]
[1771765758491,0.51369752,1965.6,1964.9,0.54797609]
[1771765759390,0.51557533,1965.7,1964.9,0.54797609]
[1771765766595,0.52669002,1966.0,1964.9,0.54797609]
[1771765766793,0.52669002,1965.8,1964.9,0.54797609]
[1771765771001,0.52669002,1965.8,1965.0,0.54797609]
[1771765772900,0.541714,1966.0,1965.0,0.54797609]
[1771765773105,0.541714,1966.0,1965.1,0.54797609]
[1771765775506,0.541714,1966.0,1965.2,0.54797609]
[1771765778706,0.541714,1966.0,1965.1,7.92664785]
[1771765778707,0.54681388,1966.1,1965.4,0.60438807]
[1771765792313,0.00412743,1966.1,1965.4,0.85885807]
[1771765792518,0.53857864,1966.4,1965.5,0.60438807]
[1771765792818,0.53857864,1966.4,1965.6,0.60438807]
[1771765793615,0.5447741,1966.4,1965.6,0.60438807]
[1771765804935,0.5447741,1966.4,1965.5,0.60438807]
[1771765805234,0.52488757,1966.2,1965.3,0.60438807]
[1771765807426,0.479538,1966.1,1965.3,0.60438807]
[1771765807626,0.52688615,1966.0,1965.3,0.60438807]
[1771765808830,0.52699601,1966.3,1965.3,0.60438807]
[1771765809132,1.00655794,1966.2,1965.3,0.60438807]
[1771765809328,0.52699601,1966.2,1965.3,0.60438807]
[1771765809529,0.52699601,1966.2,1965.4,0.55859665]
[1771765811234,0.52699601,1966.2,1965.5,0.55859665]
[1771765817038,0.53081913,1966.4,1965.5,0.55859665]
[1771765821243,0.52960185,1966.2,1965.3,8.18112785]
[1771765821544,0.52960185,1966.2,1965.3,0.55878876]
[1771765831361,0.52960185,1966.2,1965.4,0.55878876]
[1771765842668,0.52392152,1966.4,1965.5,0.59408349]
[1771765842969,0.99907665,1966.3,1965.5,0.59408349]
[1771765843171,0.51772606,1966.3,1965.5,0.59408349]
[1771765843472,0.48135363,1966.2,1965.5,0.59408349]
[1771765843670,0.51514913,1966.1,1965.5,0.59408349]
[1771765849070,0.51514913,1966.1,1965.3,0.59408349]
[1771765856174,0.50330033,1966.3,1965.3,0.59408349]
[1771765856474,0.98496819,1966.2,1965.3,0.59408349]
[1771765856775,0.50330033,1966.2,1965.3,0.59408349]
[1771765857074,0.50330033,1966.2,1965.4,0.59408349]
[1771765861873,0.48146133,1966.1,1965.3,0.59408349]
[1771765862068,0.48759498,1966.0,1965.3,0.59408349]
[1771765864075,0.48759498,1966.0,1965.2,0.59408349]
[1771765867384,0.48944142,1966.3,1965.2,0.59408349]
[1771765867584,0.97071867,1966.2,1965.3,0.59408349]
[1771765867877,0.48944142,1966.1,1965.3,0.59408349]
[1771765868084,0.48944142,1966.1,1965.4,0.55270797]
[1771765869384,0.48874362,1966.4,1965.4,0.55270797]
[1771765869585,0.48254816,1966.2,1965.4,0.55270797]
[1771765869887,0.96381847,1966.1,1965.4,0.55270797]
[1771765870081,0.48254816,1966.1,1965.4,8.47935582]
[1771765870281,0.48254816,1966.1,1965.5,0.55270797]
[1771765871787,0.48835269,1966.4,1965.5,0.55270797]
[1771765871988,0.48130739,1966.3,1965.5,0.55270797]
[1771765872288,0.48835269,1966.4,1965.5,0.55270797]
[1771765872590,0.48122206,1966.3,1965.6,0.55270797]
[1771765872886,0.48835269,1966.4,1965.6,0.55270797]
[1771765873086,0.48123318,1966.3,1965.6,0.55270797]
[1771765873283,0.48835269,1966.4,1965.6,0.55270797]
[1771765875089,0.48835269,1966.4,1965.7,0.55806574]
[1771765875284,0.00619546,1966.4,1965.7,0.56351278]
[1771765875493,0.00619546,1966.4,1965.8,0.55806574]
[1771765877095,0.00090104,1966.4,1965.8,0.55806574]
[1771765877293,7.6822566,1967.1,1965.8,0.55806574]
[1771765877294,0.49039525,1966.8,1966.0,0.55806574]
[1771765878294,0.49528754,1966.8,1966.0,0.55806574]
[1771765898001,0.49687518,1966.7,1965.9,0.56034737]
[1771765898203,0.49687518,1966.7,1965.8,0.56034737]
[1771765899204,0.49192181,1966.5,1965.8,0.56034737]
[1771765899399,0.49192181,1966.5,1965.7,0.56579441]
[1771765899606,0.49192181,1966.5,1965.7,0.00544704]
[1771765900205,0.49192181,1966.5,1965.7,0.56579441]
[1771765900503,0.49192181,1966.3,1965.7,0.56579441]
[1771765906211,0.48208189,1966.7,1965.7,0.56579441]
[1771765906412,0.48208189,1966.5,1965.7,0.56579441]
[1771765922230,0.96823506,1966.4,1965.7,0.56579441]
[1771765922533,0.48750064,1966.4,1965.7,0.56579441]
[1771765926234,0.96952958,1966.3,1965.7,0.56579441]
[1771765926434,0.48827972,1966.3,1965.7,0.56579441]
[1771765928735,0.48832468,1966.1,1965.7,0.56579441]
[1771765929227,0.48164701,1966.0,1965.7,0.56579441]
[1771765929432,0.48888989,1966.0,1965.7,0.56579441]
[1771765932636,0.48888989,1966.0,1965.5,0.58324035]
[1771765933635,0.48888989,1966.0,1965.5,0.58817592]
[1771765940440,0.48717521,1966.4,1965.5,0.58817592]
[1771765940640,0.48717521,1966.2,1965.5,0.58817592]
[1771765940841,0.48063348,1966.1,1965.5,0.58817592]
[1771765941041,0.48717521,1966.2,1965.5,0.58817592]
[1771765941243,0.48063305,1966.1,1965.5,0.58817592]
[1771765941444,0.48717521,1966.2,1965.5,0.58817592]
[1771765941743,0.48063012,1966.1,1965.5,0.58817592]
[1771765941944,0.48717521,1966.2,1965.5,0.58817592]
[1771765942242,0.48063127,1966.1,1965.5,0.58817592]
[1771765942442,0.48717521,1966.2,1965.5,0.58817592]
[1771765942638,0.48063323,1966.1,1965.5,0.58817592]
[1771765942836,0.48717521,1966.2,1965.5,0.58817592]
[1771765943034,0.48063087,1966.1,1965.5,0.58817592]
[1771765943235,0.48717521,1966.2,1965.5,0.58817592]
[1771765943440,0.48063704,1966.1,1965.5,0.58817592]
[1771765943636,0.48717521,1966.2,1965.5,0.58817592]
[1771765943846,0.48063703,1966.1,1965.5,0.58817592]
[1771765944044,0.48717521,1966.2,1965.5,0.58817592]
[1771765944247,0.48063702,1966.1,1965.5,0.58817592]
[1771765944545,0.48717521,1966.2,1965.5,0.58817592]
[1771765944744,0.48062965,1966.1,1965.5,0.58817592]
[1771765944946,0.48717521,1966.2,1965.5,0.58817592]
[1771765945146,0.48062965,1966.1,1965.5,0.58817592]
[1771765945347,0.48717521,1966.2,1965.5,0.58817592]
[1771765945643,0.48064196,1966.1,1965.5,0.58817592]
[1771765945839,0.48717521,1966.2,1965.5,0.58817592]
[1771765950248,0.48076744,1966.1,1965.5,0.58817592]
[1771765950448,0.48717521,1966.2,1965.5,0.58817592]
[1771765950649,0.97626245,1966.1,1965.5,0.58817592]
[1771765950851,0.49549508,1966.1,1965.5,0.58817592]
[1771765952851,0.51249852,1966.5,1965.5,0.58817592]
[1771765953058,4.23138529,1966.6,1965.5,0.58817592]
[1771765953059,0.51249852,1966.3,1965.5,0.58817592]
[1771765953346,0.48086477,1966.2,1965.5,0.58817592]
[1771765953552,0.51253454,1966.4,1965.5,0.58817592]
[1771765953752,0.48098401,1966.3,1965.5,0.58817592]
[1771765954051,0.51253454,1966.4,1965.5,0.58817592]
[1771765954252,0.48098421,1966.3,1965.5,0.58817592]
[1771765954451,0.51253454,1966.4,1965.5,0.58817592]
[1771765954652,0.99354598,1966.3,1965.5,0.58817592]
[1771765954853,0.51253454,1966.3,1965.5,0.58817592]
[1771765959649,0.51253454,1966.3,1965.5,8.51482377]
[1771765959855,0.51253454,1966.3,1965.6,0.58355476]
[1771765963058,6.58820204,1966.8,1965.6,0.58355476]
[1771765963358,0.52090807,1966.6,1965.6,0.58355476]
[1771765963558,6.87738686,1966.5,1965.6,0.58355476]
[1771765963758,1.00193292,1966.4,1965.6,0.58355476]
[1771765963960,0.48102485,1966.3,1965.6,0.58355476]
[1771765964259,0.52090807,1966.4,1965.6,0.58355476]
[1771765965361,0.51059883,1966.6,1965.7,0.58355476]
[1771765965559,0.48095474,1966.5,1965.7,0.58355476]
[1771765965762,0.51059883,1966.6,1965.7,0.58355476]
[1771765965960,0.48095604,1966.5,1965.7,0.58355476]
[1771765966261,0.51059883,1966.7,1965.7,0.58355476]
[1771765966458,6.86534109,1966.6,1965.7,0.58355476]
[1771765966664,0.48089057,1966.5,1965.7,0.58355476]
[1771765966864,0.51059883,1966.6,1965.7,0.58355476]
[1771765967063,0.48089275,1966.5,1965.7,0.58355476]
[1771765967266,0.51059883,1966.6,1965.7,0.58355476]
[1771765967565,0.48083866,1966.5,1965.7,0.58355476]
[1771765967764,0.51059883,1966.6,1965.7,0.58355476]
[1771765967957,0.48083895,1966.5,1965.7,0.58355476]
[1771765968162,0.51059883,1966.6,1965.7,0.58355476]
[1771765968466,0.9913913,1966.5,1965.7,0.58355476]
[1771765968667,0.5105921,1966.5,1965.7,0.58355476]
[1771765984679,0.5229428,1966.3,1965.7,0.58355476]
[1771765991192,0.5229428,1966.3,1965.8,0.5580129]
[1771765991392,0.54598725,1966.7,1965.8,0.5580129]
[1771765991692,0.54598725,1966.5,1965.8,0.5580129]
[1771765991992,1.0274447,1966.4,1965.8,0.5580129]
[1771765992191,0.54598725,1966.4,1965.8,0.5580129]
[1771765993093,0.54598725,1966.6,1965.9,0.5580129]
[1771765993991,0.54598725,1966.6,1966.0,0.55610263]
[1771766001800,0.52911237,1966.7,1966.0,0.55610263]
[1771766021112,0.48125848,1966.6,1966.0,0.55610263]
[1771766021315,0.52911237,1966.7,1966.0,0.55610263]
[1771766021613,0.48125994,1966.6,1966.0,0.55610263]
[1771766021807,0.52911237,1966.7,1966.0,0.55610263]
[1771766022111,1.02663821,1966.6,1966.0,0.55610263]
[1771766022414,0.54536236,1966.6,1966.0,0.55610263]
[1771766052743,0.00489229,1966.8,1966.0,0.55610263]
[1771766055841,0.00489229,1966.8,1966.2,0.55922949]
[1771766056045,0.58374786,1967.3,1966.2,0.55922949]
[1771766056947,0.58800506,1967.3,1966.2,0.55922949]
[1771766060850,0.58800506,1967.3,1966.3,6.69546867]
[1771766061051,0.58800506,1967.3,1966.4,0.55922949]
[1771766063953,0.0042572,1967.3,1966.4,0.55922949]
[1771766064450,0.58800506,1967.3,1966.4,0.55922949]
[1771766064752,0.58800506,1967.3,1966.6,0.55922949]
[1771766074254,0.58800506,1967.3,1966.2,0.55922949]
[1771766074762,0.58800506,1967.3,1966.3,0.55922949]
[1771766077164,0.58800506,1967.3,1966.5,0.55922949]
[1771766105782,0.58800506,1967.3,1966.5,0.81355949]
[1771766106088,0.0042572,1967.3,1966.6,7.27768876]
[1771766106287,0.5466899,1967.5,1966.7,0.58250363]
[1771766107287,0.55046711,1967.5,1966.7,0.58250363]
[1771766108789,0.00377721,1967.5,1966.9,0.56046754]
[1771766109089,0.00377721,1967.5,1966.9,0.5656383]
[1771766109288,0.57684524,1967.7,1966.9,0.5656383]
[1771766110186,0.580814,1967.7,1966.9,0.5656383]
[1771766119400,0.580814,1967.7,1965.9,1.31805842]
[1771766119401,6.77927754,1967.6,1965.3,0.58930046]
[1771766119598,5.34225,1967.1,1965.3,0.58930046]
[1771766119900,45.888,1967.0,1965.3,0.58930046]
[1771766120301,0.25428,1966.9,1965.3,0.58930046]
[1771766120497,0.25428,1966.9,1965.3,0.59535329]
[1771766121299,0.01405856,1966.8,1965.5,0.59792622]
[1771766121700,0.01405856,1966.8,1965.7,0.59792622]
[1771766130308,0.0116209,1967.2,1965.9,0.59914505]
[1771766130708,0.0116209,1967.2,1966.1,0.59914505]
[1771766143122,0.0064432,1967.0,1966.1,0.59914505]
[1771766151222,4.23392352,1967.2,1966.1,0.59914505]
[1771766151223,0.49089139,1966.9,1966.1,0.59914505]
[1771766151520,0.00984875,1966.9,1966.1,0.59914505]
[1771766166833,0.01207726,1966.7,1966.1,0.59914505]
[1771766170740,4.23392352,1967.0,1966.1,0.59914505]
[1771766170933,5.8889078,1966.9,1966.1,0.59914505]
[1771766171235,4.24879381,1967.1,1966.1,0.59914505]
[1771766171437,5.8884344,1967.0,1966.1,0.59914505]
[1771766171736,5.8884344,1966.9,1966.1,0.59914505]
[1771766171937,4.24879381,1967.1,1966.1,0.59914505]
[1771766172136,5.8884515,1967.0,1966.1,0.59914505]
[1771766172334,5.8884515,1966.9,1966.1,0.59914505]
[1771766172538,4.24879381,1967.1,1966.1,0.59914505]
[1771766172736,5.88861742,1967.0,1966.1,0.59914505]
[1771766173037,5.88861742,1966.9,1966.1,0.59914505]
[1771766173231,4.24879381,1967.1,1966.1,0.59914505]
[1771766173434,5.88015914,1967.0,1966.1,0.59914505]
[1771766173634,5.88015914,1966.9,1966.1,0.59914505]
[1771766173834,4.24879381,1967.1,1966.1,0.59914505]
[1771766174040,5.88021367,1967.0,1966.1,0.59914505]
[1771766174339,5.88021367,1966.9,1966.1,0.59914505]
[1771766174539,4.24879381,1967.1,1966.1,0.59914505]
[1771766174741,5.88022287,1967.0,1966.1,0.59914505]
[1771766175040,5.88022287,1966.9,1966.1,0.59914505]
[1771766175238,4.24879381,1967.1,1966.1,0.59914505]
[1771766175538,4.23392352,1967.3,1966.3,0.54836859]
[1771766175738,0.60509546,1967.4,1966.3,7.99718512]
[1771766176240,0.60509546,1967.4,1966.4,7.99718512]
[1771766177140,0.60509546,1967.4,1966.3,7.99718512]
[1771766177439,0.60509546,1967.4,1966.3,14.56519884]
[1771766180144,1.08987975,1967.3,1966.3,14.56519884]
[1771766180338,0.60878459,1967.3,1966.3,14.56519884]
[1771766184446,0.48212299,1967.2,1966.3,14.56519884]
[1771766184746,0.60878459,1967.3,1966.3,14.56519884]
[1771766184948,0.48209878,1967.2,1966.3,14.56519884]
[1771766185149,0.60878459,1967.3,1966.3,14.56519884]
[1771766185348,0.48209886,1967.2,1966.3,14.56519884]
[1771766185647,0.60878459,1967.3,1966.3,14.56519884]
[1771766185849,0.4820914,1967.2,1966.3,14.56519884]
[1771766186050,0.60878459,1967.3,1966.3,14.56519884]
[1771766186250,0.48209132,1967.2,1966.3,14.56519884]
[1771766186452,0.60878459,1967.3,1966.3,14.56519884]
[1771766186751,0.48208862,1967.2,1966.3,14.56519884]
[1771766186952,0.60878459,1967.3,1966.3,14.56519884]
[1771766187153,0.48208881,1967.2,1966.3,14.56519884]
[1771766187453,0.60878459,1967.3,1966.3,14.56519884]
[1771766187654,0.48208745,1967.2,1966.3,14.56519884]
[1771766187850,0.60878459,1967.3,1966.3,14.56519884]
[1771766188050,0.48208736,1967.2,1966.3,14.56519884]
[1771766188252,0.60878459,1967.3,1966.3,14.56519884]
[1771766188452,0.48208746,1967.2,1966.3,14.56519884]
[1771766188653,0.60878459,1967.3,1966.3,14.56519884]
[1771766188854,0.48208681,1967.2,1966.3,14.56519884]
[1771766189154,0.60878459,1967.3,1966.3,14.56519884]
[1771766189352,0.48208667,1967.2,1966.3,14.56519884]
[1771766189551,0.60878459,1967.3,1966.3,14.56519884]
[1771766189755,1.09032306,1967.2,1966.3,14.56519884]
[1771766189958,0.60823621,1967.2,1966.3,14.56519884]
[1771766191152,0.60823621,1967.2,1966.3,6.56801372]
[1771766194158,0.60823621,1967.2,1966.3,14.56519884]
[1771766194858,0.60823621,1967.2,1966.3,6.56801372]
[1771766195059,0.60823621,1967.2,1966.3,14.56519884]
[1771766197254,0.60823621,1967.2,1966.4,7.99718512]
[1771766203161,0.60823621,1967.2,1966.5,7.99718512]
[1771766220374,0.61363293,1967.5,1966.5,7.99718512]
[1771766220575,6.908105,1967.4,1966.5,7.99718512]
[1771766220876,0.13621589,1967.3,1966.7,7.99718512]
[1771766221076,0.61363293,1967.6,1966.7,8.00365222]
[1771766221373,0.62266048,1967.7,1966.7,8.00365222]
[1771766221570,0.00396876,1967.7,1966.9,7.99718512]
[1771766222376,0.62266048,1967.7,1966.8,7.99718512]
[1771766226170,0.62266048,1967.7,1966.7,0.0064671]
[1771766226171,0.62266048,1967.7,1966.7,8.00365222]
[1771766229182,0.62266048,1967.7,1966.7,0.0064671]
[1771766231285,0.62266048,1967.7,1966.7,8.00365222]
[1771766241491,7.64312134,1968.0,1966.9,7.99718512]
[1771766241492,0.62436823,1967.9,1966.9,7.99718512]
[1771766241789,0.62436823,1967.9,1967.0,6.5943261]
[1771766242589,0.62908854,1967.9,1967.0,6.5943261]
[1771766243791,0.62908854,1967.9,1967.0,14.59151122]
[1771766248295,0.63233757,1967.7,1966.9,7.99718512]
[1771766248493,0.63233757,1967.7,1966.8,7.99718512]
[1771766250797,0.63469641,1967.5,1966.8,7.99718512]
[1771766260504,0.64332466,1967.8,1966.8,7.99718512]
[1771766260703,0.64332466,1967.6,1966.8,7.99718512]
[1771766261304,0.00472031,1967.9,1966.8,7.99718512]
[1771766261603,0.64281381,1967.7,1966.8,7.99718512]
[1771766261803,0.4787413,1967.6,1966.8,7.99718512]
[1771766262305,0.64281381,1967.7,1966.9,6.73554702]
[1771766262507,0.64281381,1967.8,1966.9,14.73273214]
[1771766262799,0.00472031,1967.9,1967.0,7.99718512]
[1771766263003,0.47880445,1967.8,1967.0,7.99718512]
[1771766263204,0.64753412,1967.9,1967.0,7.99718512]
[1771766263406,0.47878318,1967.8,1967.0,7.99718512]
[1771766263707,0.64753412,1967.9,1967.0,7.99718512]
[1771766263906,0.47877204,1967.8,1967.0,7.99718512]
[1771766264206,0.64753412,1967.9,1967.0,7.99718512]
[1771766264400,0.4787461,1967.8,1967.0,7.99718512]
[1771766264601,0.64753412,1967.9,1967.0,7.99718512]
[1771766264798,0.47874636,1967.8,1967.0,7.99718512]
[1771766264998,0.64753412,1967.9,1967.0,7.99718512]
[1771766265297,0.47874527,1967.8,1967.0,7.99718512]
[1771766265497,0.64753412,1967.9,1967.0,7.99718512]
[1771766265703,0.47872395,1967.8,1967.0,7.99718512]
[1771766265899,0.64753412,1967.9,1967.0,7.99718512]
[1771766266204,0.4787242,1967.8,1967.0,7.99718512]
[1771766266403,0.64753412,1967.9,1967.0,7.99718512]
[1771766266705,0.47870809,1967.8,1967.0,7.99718512]
[1771766266903,0.64753412,1967.9,1967.0,7.99718512]
[1771766267106,0.47870946,1967.8,1967.0,7.99718512]
[1771766267406,0.64753412,1967.9,1967.0,7.99718512]
[1771766267809,0.47869564,1967.8,1967.0,7.99718512]
[1771766268007,0.64753412,1967.9,1967.0,7.99718512]
[1771766277415,0.00472031,1967.9,1967.0,7.99718512]
[1771766277609,4.88107023,1968.4,1967.2,7.99718512]
[1771766277920,0.64714671,1968.2,1967.5,7.99718512]
[1771766278114,0.64714671,1968.2,1967.4,7.99718512]
[1771766278918,0.65165172,1968.2,1967.4,7.99718512]
[1771766281009,0.65165172,1968.2,1967.3,8.25141512]
[1771766282016,0.65165172,1968.2,1967.4,7.99718512]
[1771766283319,0.65165172,1968.2,1967.3,8.25141512]
[1771766286721,0.00450501,1968.2,1967.4,6.5969446]
[1771766286915,0.00450501,1968.2,1967.4,14.59412972]
[1771766287321,0.00450501,1968.2,1967.4,6.5969446]
[1771766287521,0.00450501,1968.2,1967.4,14.59412972]
[1771766288620,0.64930064,1968.2,1967.4,14.59412972]
[1771766291719,0.64930064,1968.2,1967.3,0.25423]
[1771766292121,0.64930064,1968.2,1967.4,6.68340828]
[1771766292933,0.00450501,1968.2,1967.4,14.6805934]
[1771766293326,0.00450501,1968.2,1967.5,7.99718512]
[1771766293626,0.00450501,1968.2,1967.6,6.68776729]
[1771766295926,0.63605434,1968.5,1967.6,6.68776729]
[1771766296924,0.64219162,1968.5,1967.6,6.68776729]
[1771766297526,0.64219162,1968.5,1967.6,14.68495241]
[1771766297827,0.64219162,1968.5,1967.6,7.99718512]
[1771766298126,0.64219162,1968.5,1967.7,6.57620864]
[1771766301330,0.64219162,1968.5,1967.7,14.57339376]
[1771766301726,0.00613728,1968.5,1967.7,7.99718512]
[1771766301928,0.00613728,1968.5,1967.8,6.61993443]
[1771766302831,0.64130054,1968.5,1967.8,6.61993443]
[1771766307433,0.64130054,1968.5,1967.8,14.61711955]
[1771766314941,0.64130054,1968.5,1967.7,7.99718512]
[1771766317546,0.00613728,1968.5,1967.9,7.99718512]
[1771766319346,0.63739719,1968.7,1968.0,14.53892231]
[1771766319851,0.63739719,1968.7,1968.0,7.99718512]
[1771766320245,0.64308236,1968.7,1968.0,7.99718512]
[1771766320549,0.00568517,1968.7,1968.1,14.50448136]
[1771766320749,0.00568517,1968.7,1968.1,14.51047907]
[1771766320949,0.00568517,1968.7,1968.1,8.00318283]
[1771766321553,0.00568517,1968.7,1968.2,14.58266126]
[1771766322852,0.63573572,1968.7,1968.2,7.99718512]
[1771766323448,0.63573572,1968.7,1968.1,8.00318283]
[1771766325349,4.23392352,1969.5,1968.1,8.00318283]
[1771766325555,0.54970111,1969.3,1968.2,0.60120745]
[1771766325854,0.54970111,1969.1,1968.2,0.60120745]
[1771766326555,0.55571903,1969.1,1968.2,0.60120745]
[1771766327755,0.55571903,1969.1,1968.3,0.60120745]
[1771766335066,0.54970111,1968.9,1968.1,0.60720516]
[1771766339468,0.54970111,1968.7,1968.1,0.60720516]
[1771766339763,0.54970111,1968.7,1968.1,0.00599771]
[1771766339963,0.54970111,1968.5,1967.6,0.60120745]
[1771766340167,0.54970111,1968.3,1967.6,0.60120745]
[1771766340363,0.54970111,1968.3,1967.4,7.99718512]
[1771766340662,0.25405,1968.7,1967.3,0.60120745]
[1771766340663,0.54970111,1968.1,1967.3,0.60120745]
[1771766340863,0.54970111,1968.1,1967.3,0.60636404]
[1771766346472,0.54970111,1968.1,1967.3,0.00515659]
[1771766346674,0.54970111,1968.1,1967.3,0.60636404]
[1771766355577,0.54970111,1968.1,1967.3,0.00515659]
[1771766359078,0.59450384,1967.9,1966.9,0.58327285]
[1771766359973,0.59450384,1967.9,1966.9,0.58842475]